Body,Body Name,Date,TransNo,Amount � (Excl VAT),Supplier name,Description,Expense Area,Expense Type,Expense Code,
http://opendatacommunities.org/id/london-borough-council/sutton,London Borough of Sutton,22/01/2023,10010353,8.32, TWINKL,TWINKL SUBSCRIPTION,Health and Wellbeing,Equipment And Materials Purchase,A40000,
http://opendatacommunities.org/id/london-borough-council/sutton,London Borough of Sutton,11/01/2023,10010353,30.06, AMAZON.CO.UK 1H6V066Z4,CHOPPING BOARDS,Health and Wellbeing,Equipment And Materials Purchase,A40000,
http://opendatacommunities.org/id/london-borough-council/sutton,London Borough of Sutton,09/01/2023,10010353,68.19, TESCO STORES 5999,GROCERIES,Health and Wellbeing,Provisions,A41006,
http://opendatacommunities.org/id/london-borough-council/sutton,London Borough of Sutton,03/01/2023,10010353,83.65, SAINSBURYS.CO.UK,GROCERIES,Health and Wellbeing,Provisions,A41006,
http://opendatacommunities.org/id/london-borough-council/sutton,London Borough of Sutton,30/12/2022,10010353,15.57, SAINSBURYS S/MKTS,GROCERIES,Health and Wellbeing,Provisions,A41006,
http://opendatacommunities.org/id/london-borough-council/sutton,London Borough of Sutton,28/12/2022,10010353,12.79, SAINSBURYS S/MKTS,GROCERIES,Health and Wellbeing,Provisions,A41006,
http://opendatacommunities.org/id/london-borough-council/sutton,London Borough of Sutton,23/01/2023,10010353,55.49, TESCO STORES 5999,GROCERIES,Health and Wellbeing,Provisions,A41006,
http://opendatacommunities.org/id/london-borough-council/sutton,London Borough of Sutton,17/01/2023,10010353,2.86, SAINSBURYS S/MKTS,GROCERIES,Health and Wellbeing,Provisions,A41006,
http://opendatacommunities.org/id/london-borough-council/sutton,London Borough of Sutton,13/01/2023,10010353,76.58, SAINSBURYS.CO.UK,GROCERIES,Health and Wellbeing,Provisions,A41006,
http://opendatacommunities.org/id/london-borough-council/sutton,London Borough of Sutton,25/01/2023,10010353,79.08, SP FLAGS AND FLAGPOL,BUNTING FOR SUTTON STEAMS AHEAD PROGRAMME,Health and Wellbeing,Publicity,A44266,
http://opendatacommunities.org/id/london-borough-council/sutton,London Borough of Sutton,25/01/2023,10010353,115.20, WWW.INSTANTPRINT.C,SUTTON STEAMS AHEAD ROLLER BANNERS X 3,Health and Wellbeing,Publicity,A44266,
http://opendatacommunities.org/id/london-borough-council/sutton,London Borough of Sutton,25/01/2023,10010353,60.97, VISTAPRINT,SUTTON STEAMS AHEAD STICKERS,Health and Wellbeing,Publicity,A44266,
http://opendatacommunities.org/id/london-borough-council/sutton,London Borough of Sutton,24/01/2023,10010353,11.87, AMZN MKTP UK 1A93O6WR4,"SPLIT - RAINBOW BALLOON ARCH KIT, RATSAW 126 PACK COLOURFUL BALLOON GARLAND, 5/12/18 INCH ASSORTED COLOUR BALLOONS SET FOR BIRTHDAY PARTY WEDDING ANNIVERSARY (100%)",Health and Wellbeing,Publicity,A44266,
http://opendatacommunities.org/id/london-borough-council/sutton,London Borough of Sutton,19/01/2023,10010353,48.56, AMZNBUSINESS 1A8SM9M64,"SPLIT - 100% ECO RECYCLED ART A4 CARTRIDGE PAPER WHITE GREAT ART PAPER 140GSM PACK OF 250 SHEETS - SUITABLE FOR BOOKMAKING, SKETCHING, PAINTING, PRINTING AND (100%)",Health and Wellbeing,Arts Programme,A44286,
http://opendatacommunities.org/id/london-borough-council/sutton,London Borough of Sutton,13/01/2023,10010353,4.52, HERMES PARCELNET LTD T,SPLIT - COURIER COST - EQUIPMENT TRANSPORTATION (50%),Health and Wellbeing,Postage & Couriers,A45015,
http://opendatacommunities.org/id/london-borough-council/sutton,London Borough of Sutton,13/01/2023,10010353,4.53, HERMES PARCELNET LTD T,SPLIT - COURIER COST - EQUIPMENT TRANSPORTATION (50%),Health and Wellbeing,Postage & Couriers,A45015,
http://opendatacommunities.org/id/london-borough-council/sutton,London Borough of Sutton,12/01/2023,10010353,5.82, AMZNMKTPLACE,"SPLIT - DERAYEE 5MM BURLAP LEAF RIBBON,NATURAL JUTE TWINE WITH ARTIFICIAL LEAVES FOR ART & CRAFTING HOME PACKING DECORATION (100%)",Health and Wellbeing,Arts Programme,A44286,
http://opendatacommunities.org/id/london-borough-council/sutton,London Borough of Sutton,11/01/2023,10010353,5.49, AMZNMKTPLACE,"SPLIT - LEAF RIBBON, 66 FEET NATURAL JUTE TWINE WITH GREEN LEAVES GARDEN STRING TWINE HESSIAN STRING FOR CRAFTS, WOVEN GARLANDS, HOME AND WEDDING DECORATIONS (100%)",Health and Wellbeing,Arts Programme,A44286,
http://opendatacommunities.org/id/london-borough-council/sutton,London Borough of Sutton,11/01/2023,10010353,7.07, AMZNMKTPLACE,SPLIT - TRIPLAST BROWN ECO KRAFT PAPER (500MM X 50M) - BIODEGRADABLE & RECYCLABLE - MULTIPURPOSE WRAPPING PAPER ROLL WITH A PREMIUM & RUSTIC FINISH - IDEAL FO (100%),Health and Wellbeing,Arts Programme,A44286,
http://opendatacommunities.org/id/london-borough-council/sutton,London Borough of Sutton,27/12/2022,10010353,4.16, AMZN MKTP UK,3D FLOWER CUTTING DIES,Health and Wellbeing,Arts Programme,A44286,
http://opendatacommunities.org/id/london-borough-council/sutton,London Borough of Sutton,19/01/2023,10010353,2.49, AMZNMKTPLACE,SPLIT - 0.15MM CLEAR NYLON THREAD INVISIBLE STRING NON STRETCH CLEAR FISHING WIRE TRANSPARENT PLASTIC SEWING THREAD FOR HANGING DECORATIONS CRAFT PARTY BALLOO (100%),Health and Wellbeing,Arts Programme,A44286,
http://opendatacommunities.org/id/london-borough-council/sutton,London Borough of Sutton,17/01/2023,10010353,4.66, AMZNMKTPLACE,"SPLIT - CAKE COLLAR, 8CM X 10 M, ACETATE ROLL, TRANSPARENT ACETATE CAKE STRIPS, CAKE COLLARS FOR CAKE DECORATION, CHOCOLATE, MOUSSE, DESSERT RINGS (8 CM) (100%)",Health and Wellbeing,Arts Programme,A44286,
http://opendatacommunities.org/id/london-borough-council/sutton,London Borough of Sutton,16/01/2023,10010353,33.30, AMZNMKTPLACE,"SPLIT - 42 PCS LUNAR CHINESE NEW YEAR DECORATIONS 2023, LUCKY FU PENDANTS CHINESE KNOT FIRECRACKERS LANTERNS HANGING ACCESSORIES FOR CHINA PARTY SUPPLIES, HAP (100%)",Health and Wellbeing,Arts Programme,A44286,
http://opendatacommunities.org/id/london-borough-council/sutton,London Borough of Sutton,15/01/2023,10010353,11.64, AMZNMKTPLACE AMAZON.CO,"SPLIT - DERAYEE 5MM BURLAP LEAF RIBBON,NATURAL JUTE TWINE WITH ARTIFICIAL LEAVES FOR ART & CRAFTING HOME PACKING DECORATION (100%)",Health and Wellbeing,Arts Programme,A44286,
http://opendatacommunities.org/id/london-borough-council/sutton,London Borough of Sutton,11/01/2023,10010353,-7.07, AMZ AMAZON BUSINESS EU,SPLIT - TRIPLAST BROWN ECO KRAFT PAPER (500MM X 50M) - BIODEGRADABLE & RECYCLABLE - MULTIPURPOSE WRAPPING PAPER ROLL WITH A PREMIUM & RUSTIC FINISH - IDEAL FO (100%),Health and Wellbeing,Arts Programme,A44286,
http://opendatacommunities.org/id/london-borough-council/sutton,London Borough of Sutton,11/01/2023,10010353,-9.16, AMZ AMAZON BUSINESS EU,"SPLIT - COMMAND GP024-60 POSTER STRIPS, VALUE PACK, 60 ADHESIVE STRIPS, WHITE - IDEAL FOR HANGING POSTERS, SCHEDULES, CALENDARS OR PICTURES WITHOUT FRAMES (49.39%)",Health and Wellbeing,Arts Programme,A44286,
http://opendatacommunities.org/id/london-borough-council/sutton,London Borough of Sutton,11/01/2023,10010353,-6.92, AMZ AMAZON BUSINESS EU,"SPLIT - COMMAND POSTER STRIPS, VALUE PACK, 48 ADHESIVE STRIPS, WHITE - IDEAL FOR HANGING POSTERS, SCHEDULES, CALENDARS OR PICTURES WITHOUT FRAMES (37.35%)",Health and Wellbeing,Arts Programme,A44286,
http://opendatacommunities.org/id/london-borough-council/sutton,London Borough of Sutton,11/01/2023,10010353,-2.46, AMZ AMAZON BUSINESS EU,"SPLIT - ANSIO HOT GLUE STICKS HOT MELT GLUE GUN STICKS FOR HOT GLUE GUN, SGS APPROVED, 50 PCS - 7MM X 100MM, CLEAR (13.26%)",Health and Wellbeing,Arts Programme,A44286,
http://opendatacommunities.org/id/london-borough-council/sutton,London Borough of Sutton,11/01/2023,10010353,-11.64, AMZ AMAZON BUSINESS EU,"SPLIT - DERAYEE 5MM BURLAP LEAF RIBBON,NATURAL JUTE TWINE WITH ARTIFICIAL LEAVES FOR ART & CRAFTING HOME PACKING DECORATION (100%)",Health and Wellbeing,Arts Programme,A44286,
http://opendatacommunities.org/id/london-borough-council/sutton,London Borough of Sutton,11/01/2023,10010353,-4.99, AMZ AABPCP STORE,"SPLIT - AABPCP CAKE COLLAR, 10CM X 10 M, ACETATE ROLL, TRANSPARENT ACETATE CAKE STRIPS, CAKE COLLARS FOR CAKE DECORATION, CHOCOLATE, MOUSSE, DESSERT RINGS (10 (100%)",Health and Wellbeing,Arts Programme,A44286,
http://opendatacommunities.org/id/london-borough-council/sutton,London Borough of Sutton,10/01/2023,10010353,6.66, AMZNMKTPLACE AMAZON.CO,"SPLIT - 42 PCS LUNAR CHINESE NEW YEAR DECORATIONS 2023, LUCKY FU PENDANTS CHINESE KNOT FIRECRACKERS LANTERNS HANGING ACCESSORIES FOR CHINA PARTY SUPPLIES, HAP (50%)",Health and Wellbeing,Arts Programme,A44286,
http://opendatacommunities.org/id/london-borough-council/sutton,London Borough of Sutton,10/01/2023,10010353,6.66, AMZNMKTPLACE AMAZON.CO,"SPLIT - 100 PCS PIRATE JEWELS TREASURE, ACRYLIC DIAMOND GEMS JEWELS CHILDRENS CRYSTAL ACRYLIC GEMSTONES KIDS PLAY GEMS ICE ROCKS GEMS FOR PARTY SUPPLIES COSTU (50%)",Health and Wellbeing,Arts Programme,A44286,
http://opendatacommunities.org/id/london-borough-council/sutton,London Borough of Sutton,11/01/2023,10010353,6.92, AMZNMKTPLACE,"SPLIT - COMMAND POSTER STRIPS, VALUE PACK, 48 ADHESIVE STRIPS, WHITE - IDEAL FOR HANGING POSTERS, SCHEDULES, CALENDARS OR PICTURES WITHOUT FRAMES (37.35%)",Health and Wellbeing,Arts Programme,A44286,
http://opendatacommunities.org/id/london-borough-council/sutton,London Borough of Sutton,11/01/2023,10010353,2.46, AMZNMKTPLACE,"SPLIT - ANSIO HOT GLUE STICKS HOT MELT GLUE GUN STICKS FOR HOT GLUE GUN, SGS APPROVED, 50 PCS - 7MM X 100MM, CLEAR (13.26%)",Health and Wellbeing,Arts Programme,A44286,
http://opendatacommunities.org/id/london-borough-council/sutton,London Borough of Sutton,11/01/2023,10010353,9.16, AMZNMKTPLACE,"SPLIT - COMMAND GP024-60 POSTER STRIPS, VALUE PACK, 60 ADHESIVE STRIPS, WHITE - IDEAL FOR HANGING POSTERS, SCHEDULES, CALENDARS OR PICTURES WITHOUT FRAMES (49.39%)",Health and Wellbeing,Arts Programme,A44286,
http://opendatacommunities.org/id/london-borough-council/sutton,London Borough of Sutton,11/01/2023,10010353,2.33, AMZNMKTPLACE,SPLIT - DECORATION KIT FOR LUNAR NEW YEAR EVENT AT SUTTON CENTRAL LIBRARY (50%),Health and Wellbeing,Arts Programme,A44286,
http://opendatacommunities.org/id/london-borough-council/sutton,London Borough of Sutton,11/01/2023,10010353,2.33, AMZNMKTPLACE,SPLIT - DECORATION KIT FOR LUNAR NEW YEAR EVENT AT SUTTON CENTRAL LIBRARY (50%),Health and Wellbeing,Arts Programme,A44286,
http://opendatacommunities.org/id/london-borough-council/sutton,London Borough of Sutton,11/01/2023,10010353,-4.98, AMZ AMAZON BUSINESS EU,SPLIT - 0.15MM CLEAR NYLON THREAD INVISIBLE STRING NON STRETCH CLEAR FISHING WIRE TRANSPARENT PLASTIC SEWING THREAD FOR HANGING DECORATIONS CRAFT PARTY BALLOO (100%),Health and Wellbeing,Arts Programme,A44286,
http://opendatacommunities.org/id/london-borough-council/sutton,London Borough of Sutton,11/01/2023,10010353,-10.76, AMZ AMAZON BUSINESS EU,"SPLIT - LEAF RIBBON, 66 FEET NATURAL JUTE TWINE WITH GREEN LEAVES GARDEN STRING TWINE HESSIAN STRING FOR CRAFTS, WOVEN GARLANDS, HOME AND WEDDING DECORATIONS (100%)",Health and Wellbeing,Arts Programme,A44286,
http://opendatacommunities.org/id/london-borough-council/sutton,London Borough of Sutton,13/01/2023,10010353,108.96, AMZNMKTPLACE,TOYS FOR DEVELOPMENT REVIEW CLINICS,Health and Wellbeing,Other Supplies & Services,A44291,
http://opendatacommunities.org/id/london-borough-council/sutton,London Borough of Sutton,12/01/2023,10010353,39.95, AMZNMKTPLACE AMAZON.CO,TOYS FOR DEVELOPMENT REVIEW CLINICS,Health and Wellbeing,Other Supplies & Services,A44291,
http://opendatacommunities.org/id/london-borough-council/sutton,London Borough of Sutton,19/01/2023,10010353,632.46, ARGOS LTD,SOFA FOR TWEEDDALE FAMILY HUB,Health and Wellbeing,Furniture - Purchase,A40015,
http://opendatacommunities.org/id/london-borough-council/sutton,London Borough of Sutton,19/01/2023,10010353,71.87, ARGOS LTD,FURNITURE FOR TWEEDDALE FAMILY HUB,Health and Wellbeing,Furniture - Purchase,A40015,
http://opendatacommunities.org/id/london-borough-council/sutton,London Borough of Sutton,11/01/2023,10010353,16.37, AMZNMKTPLACE,SPLIT - FOAM MAT FOR SUTTON FAMILY HUB (40.55%),Health and Wellbeing,Furniture - Purchase,A40015,
http://opendatacommunities.org/id/london-borough-council/sutton,London Borough of Sutton,11/01/2023,10010353,24.01, AMZNMKTPLACE,SPLIT - LAPTOP MATS FOR SUTTON FAMILY HUB (59.45%),Health and Wellbeing,Furniture - Purchase,A40015,
http://opendatacommunities.org/id/london-borough-council/sutton,London Borough of Sutton,09/01/2023,10010353,246.79, AMZNMKTPLACE,MATS AND BLANKETS FOR CHILDREN'S CENTRE USE IN FAMILY HUB,Health and Wellbeing,Furniture - Purchase,A40015,
http://opendatacommunities.org/id/london-borough-council/sutton,London Borough of Sutton,06/01/2023,10010353,93.33, ARGOS LTD,TEA AND COFFEE TROLLEY FOR SUTTON FAMILY HUB,Health and Wellbeing,Furniture - Purchase,A40015,
http://opendatacommunities.org/id/london-borough-council/sutton,London Borough of Sutton,05/01/2023,10010353,20.80, DUNELM LTD,SOFT FURNISHINGS FOR SUTTON FAMILY HUB,Health and Wellbeing,Furniture - Purchase,A40015,
http://opendatacommunities.org/id/london-borough-council/sutton,London Borough of Sutton,05/01/2023,10010353,295.00, IKEA LTD 144 CROYDON M,PLANTS AND CHILDRENS TABLES FOR SUTTON FAMILY HUB,Health and Wellbeing,Furniture - Purchase,A40015,
http://opendatacommunities.org/id/london-borough-council/sutton,London Borough of Sutton,09/01/2023,10010353,32.29, WM MORRISONS STORE,REFRESHMENTS FOR CHILDREN'S DELIVERY BOARD MEETING 09/01/23,Health and Wellbeing,Catering,A41000,
http://opendatacommunities.org/id/london-borough-council/sutton,London Borough of Sutton,03/01/2023,10010353,8.32, SPOTIFY UK,MUSIC FOR WEDDINGS,Health and Wellbeing,Subscriptions,A47010,
http://opendatacommunities.org/id/london-borough-council/sutton,London Borough of Sutton,28/12/2022,10010353,4.07, SAINSBURY'S S/MKT,DISHWASHER TABLETS,Health and Wellbeing,Miscellaneous Expenses,A49000,
http://opendatacommunities.org/id/london-borough-council/sutton,London Borough of Sutton,18/01/2023,10010353,8.74, WAITROSE 559,REFRESHMENTS FOR MARKETING WORKSHOP MEETING,Health and Wellbeing,Miscellaneous Expenses,A49000,
http://opendatacommunities.org/id/london-borough-council/sutton,London Borough of Sutton,18/01/2023,10010353,10.74, TESCO STORES 3235,GROCERIES,Resources,Publicity,A44266,
http://opendatacommunities.org/id/london-borough-council/sutton,London Borough of Sutton,04/01/2023,10010353,0.39, OTTER.AI,FOREIGN FEE FOR OTTER.AI,Resources,Publicity,A44266,
http://opendatacommunities.org/id/london-borough-council/sutton,London Borough of Sutton,03/01/2023,10010353,14.14, OTTER.AI,OTTER.AI SUBSCRIPTION,Resources,Publicity,A44266,
http://opendatacommunities.org/id/london-borough-council/sutton,London Borough of Sutton,25/01/2023,10010353,3.32, AMAZON.CO.UK 1O14I1FS4,"SD CARD FOR ""REDACTED - PERSONAL DATA""",Resources,Publicity,A44266,
http://opendatacommunities.org/id/london-borough-council/sutton,London Borough of Sutton,14/01/2023,10010353,536.15, MAILCHIMP,LBS SUBSCRIPTION MAILCHIMP,Resources,Registration & Licence Fees Payable,A44267,
http://opendatacommunities.org/id/london-borough-council/sutton,London Borough of Sutton,21/01/2023,10010353,303.17, MAILCHIMP,SHP SUBSCRIPTION RECHARGE TO COST CODE  C63500 A47010,Resources,Registration & Licence Fees Payable,A44267,
http://opendatacommunities.org/id/london-borough-council/sutton,London Borough of Sutton,26/01/2023,10010353,0.90, NOUNPROJECT.COM,"SUBSCRIPTION FOR COMMUNICATIONS TEAM - CONTACT ""REDACTED - PERSONAL DATA""",Resources,Subscriptions,A47010,
http://opendatacommunities.org/id/london-borough-council/sutton,London Borough of Sutton,25/01/2023,10010353,32.61, NOUNPROJECT.COM,"SUBSCRIPTION FOR COMMUNICATIONS TEAM - CONTACT ""REDACTED - PERSONAL DATA""",Resources,Subscriptions,A47010,
http://opendatacommunities.org/id/london-borough-council/sutton,London Borough of Sutton,20/01/2023,10010353,20.00, OYSTER BUS AUTOLOAD,CL&G,Resources,"Grants, Contributions & Donations",A47005,
http://opendatacommunities.org/id/london-borough-council/sutton,London Borough of Sutton,20/01/2023,10010353,2.15, PADDLE.NET  GOOGLEADON,CL&G,Resources,"Grants, Contributions & Donations",A47005,
http://opendatacommunities.org/id/london-borough-council/sutton,London Borough of Sutton,19/01/2023,10010353,78.35, PADDLE.NET  GOOGLEADON,CL&G,Resources,"Grants, Contributions & Donations",A47005,
http://opendatacommunities.org/id/london-borough-council/sutton,London Borough of Sutton,19/01/2023,10010353,270.00, ARGOS LTD,CL&G,Resources,"Grants, Contributions & Donations",A47005,
http://opendatacommunities.org/id/london-borough-council/sutton,London Borough of Sutton,13/01/2023,10010353,20.00, OYSTER BUS AUTOLOAD,CL&G,Resources,"Grants, Contributions & Donations",A47005,
http://opendatacommunities.org/id/london-borough-council/sutton,London Borough of Sutton,12/01/2023,10010353,"10,500.00", CS MORRISONS GIFT CARD,CL&G,Resources,"Grants, Contributions & Donations",A47005,
http://opendatacommunities.org/id/london-borough-council/sutton,London Borough of Sutton,19/01/2023,10010353,151.99, WWW.CPAG.ORG.UK,"PURCHASE OF HOUSING BENEFIT AND COUNCIL TAX REDUCTION LEGISLATION, 35TH ED WITH SUPPLEMENT",Resources,Stationery,A43015,
http://opendatacommunities.org/id/london-borough-council/sutton,London Borough of Sutton,18/01/2023,10010353,"1,380.00", M&C RESRVTION SVCS LTD,Court Fees to Vacate,Resources,Insurance Claims,A44261,
http://opendatacommunities.org/id/london-borough-council/sutton,London Borough of Sutton,05/01/2023,10010353,13.32, AMZNMKTPLACE,TEMP TESTER REQUIRED FOR INNOVATION GATEWAY,Resources,Contingency,A49001,
http://opendatacommunities.org/id/london-borough-council/sutton,London Borough of Sutton,08/01/2023,10010353,87.50, AMZNMKTPLACE AMAZON.CO,FRIDGE REQUIRED FOR WESTCROFT LIBRARY AS REQUESTED BY OLU.,Resources,FM - Responsive Repairs Contract - Mitie,A56098,
http://opendatacommunities.org/id/london-borough-council/sutton,London Borough of Sutton,05/01/2023,10010353,558.30, AMZ BUY IT DIRECT LT,"3 X DEHUMIDIFIERS REQUIRED FOR HONEYWOOD MUSEUM AS REQUESTED BY ""REDACTED - PERSONAL DATA""",Resources,FM - Responsive Repairs Contract - Mitie,A56098,
http://opendatacommunities.org/id/london-borough-council/sutton,London Borough of Sutton,05/01/2023,10010353,43.93, AMZNMKTPLACE,VARIOUS ITEMS REQUIRED FOR FIRST AID ROOM AT CIVIC,Resources,Contingency,A49001,
http://opendatacommunities.org/id/london-borough-council/sutton,London Borough of Sutton,28/12/2022,10010353,151.68, FRAMES.CO.UK,BALANCING ENTRY AMOUNT (100%),Resources,Contingency,A49001,
http://opendatacommunities.org/id/london-borough-council/sutton,London Borough of Sutton,05/01/2023,10010353,192.00, CHARTERED MANAGEME,CMI MEMBERSHIP (MD),Environment Housing and Neighbourhoods,Staff Professional Membership Fees Non Payroll,A15025,
http://opendatacommunities.org/id/london-borough-council/sutton,London Borough of Sutton,20/01/2023,10010353,118.25, HOTEL AT BOOKING.COM,EMERGENCY ACCOMMODATION FOR HOMELESS HOUSEHOLD,Environment Housing and Neighbourhoods,Bed & Breakfast,A56000,
http://opendatacommunities.org/id/london-borough-council/sutton,London Borough of Sutton,20/01/2023,10010353,236.37, HOTEL AT BOOKING.COM,EMERGENCY ACCOMMODATION FOR HOMELESS HOUSEHOLD,Environment Housing and Neighbourhoods,Bed & Breakfast,A56000,
http://opendatacommunities.org/id/london-borough-council/sutton,London Borough of Sutton,05/01/2023,10010353,89.00, THE BCI FORUM LIMITED,BCI MEMBERSHIP (GP),Environment Housing and Neighbourhoods,Staff Professional Membership Fees Non Payroll,A15025,
http://opendatacommunities.org/id/london-borough-council/sutton,London Borough of Sutton,16/01/2023,10010353,42.39, WWW.INFORMA.COM,COMMUNITY SAFETY HANDBOOK,Environment Housing and Neighbourhoods,Books,A43050,
http://opendatacommunities.org/id/london-borough-council/sutton,London Borough of Sutton,20/01/2023,10010353,151.43, TVLICENSING.CO.UK,TV LICENSE FOR THE QUAD BUILDING,Peoples Services,Miscellaneous Expenses,A49000,
http://opendatacommunities.org/id/london-borough-council/sutton,London Borough of Sutton,17/01/2023,10010353,37.50, HURAK.CO.UK,HEALTH AND SAFETY TEST PAYMENT,Peoples Services,Equipment And Materials Purchase,A40000,
http://opendatacommunities.org/id/london-borough-council/sutton,London Borough of Sutton,16/01/2023,10010353,106.00, POST OFFICE COUNTER,PASSPORT PAYMENT AT POST OFFICE,Peoples Services,Equipment And Materials Purchase,A40000,
http://opendatacommunities.org/id/london-borough-council/sutton,London Borough of Sutton,12/01/2023,10010353,72.50, PREMIER INN,HOTEL REQUIRED FOR A CONTACT,Peoples Services,Miscellaneous Expenses,A49000,
http://opendatacommunities.org/id/london-borough-council/sutton,London Borough of Sutton,10/01/2023,10010353,895.00, GAS LOGIC LTD,TRAINING COURSE FOR CARE LEAVER.,Peoples Services,Education Allowance,A60008,
http://opendatacommunities.org/id/london-borough-council/sutton,London Borough of Sutton,05/01/2023,10010353,105.83, HM PASSPORT OFFICE,PASSPORT APPLICATION FOR YOUNG PERSON,Peoples Services,Client Care/Assistance,A61011,
http://opendatacommunities.org/id/london-borough-council/sutton,London Borough of Sutton,05/01/2023,10010353,211.67, HM PASSPORT OFFICE,PASSPORT APPLICATION FOR YOUNG PERSON,Peoples Services,Client Care/Assistance,A61011,
http://opendatacommunities.org/id/london-borough-council/sutton,London Borough of Sutton,25/01/2023,10010353,265.00, POST OFFICE COUNTER,PASSPORT APPLICATIONS FOR YOUNG PEOPLE,Peoples Services,Equipment And Materials Purchase,A40000,
http://opendatacommunities.org/id/london-borough-council/sutton,London Borough of Sutton,25/01/2023,10010353,19.99, AMZNMKTPLACE AMAZON.CO,ITEM NEEDED FOR A YOUNG PERSON (100%),Peoples Services,Miscellaneous Expenses,A49000,
http://opendatacommunities.org/id/london-borough-council/sutton,London Borough of Sutton,11/01/2023,10010353,17.37, HOLLYWOOD BOWL,BOWLING ACTIVITY FOR A YOUNG PERSON,Peoples Services,Miscellaneous Expenses,A49000,
http://opendatacommunities.org/id/london-borough-council/sutton,London Borough of Sutton,12/01/2023,10010353,79.98, EASYJET,FLIGHT FOR A SOCIAL WORKER REQUIRED FOR A VISIT,Peoples Services,C.C.A Travel & Subsistance,A61010,
http://opendatacommunities.org/id/london-borough-council/sutton,London Borough of Sutton,12/01/2023,10010353,42.62, PAYPAL  DIGITALINSP,DIGITAL PROGRAMME FOR WILLOW RISE,Peoples Services,Miscellaneous Expenses,A49000,
http://opendatacommunities.org/id/london-borough-council/sutton,London Borough of Sutton,22/01/2023,10010353,11.99, AMZNMKTPLACE,ITEMS NEEDED FOR WILLOW RISE CHILDRENS HOME (33.33%),Peoples Services,Miscellaneous Expenses,A49000,
http://opendatacommunities.org/id/london-borough-council/sutton,London Borough of Sutton,22/01/2023,10010353,11.99, AMZNMKTPLACE,"SPLIT - HEAVY DUTY METAL CASH TIN LOCKABLE PETTY MONEY, COIN AND NOTE SECURITY BOX WITH 2 KEYS DIFFERENT SAFE CASH BOX (8, BLUE) (33.33%)",Peoples Services,Miscellaneous Expenses,A49000,
http://opendatacommunities.org/id/london-borough-council/sutton,London Borough of Sutton,22/01/2023,10010353,11.99, AMZNMKTPLACE,"SPLIT - HEAVY DUTY METAL CASH TIN LOCKABLE PETTY MONEY, COIN AND NOTE SECURITY BOX WITH 2 KEYS DIFFERENT SAFE CASH BOX (8, BLACK) (33.34%)",Peoples Services,Miscellaneous Expenses,A49000,
http://opendatacommunities.org/id/london-borough-council/sutton,London Borough of Sutton,21/01/2023,10010353,131.31, ASDA GROCERIES ONLINE, WILLOW RISE CHILDRENS HOME FOOD SHOPPING,Peoples Services,Miscellaneous Expenses,A49000,
http://opendatacommunities.org/id/london-borough-council/sutton,London Borough of Sutton,21/01/2023,10010353,-5.55, ASDA GROCERIES ONLINE,REFUND FOR WILLOW RISE CHILDRENS HOME FOOD SHOPPING,Peoples Services,Miscellaneous Expenses,A49000,
http://opendatacommunities.org/id/london-borough-council/sutton,London Borough of Sutton,11/01/2023,10010353,18.98, AMZNMKTPLACE,ITEM NEEDED FOR THE WILLOW RISE CHILDRENS HOME (100%),Peoples Services,Miscellaneous Expenses,A49000,
http://opendatacommunities.org/id/london-borough-council/sutton,London Borough of Sutton,11/01/2023,10010353,20.00, AMZNMKTPLACE,ITEM NEEDED FOR THE WILLOW RISE CHILDRENS HOME (100%),Peoples Services,Miscellaneous Expenses,A49000,
http://opendatacommunities.org/id/london-borough-council/sutton,London Borough of Sutton,11/01/2023,10010353,15.00, AMZNMKTPLACE,ITEM NEEDED FOR THE WILLOW RISE CHILDRENS HOME (45.45%),Peoples Services,Miscellaneous Expenses,A49000,
http://opendatacommunities.org/id/london-borough-council/sutton,London Borough of Sutton,11/01/2023,10010353,18.00, AMZNMKTPLACE,ITEM NEEDED FOR THE WILLOW RISE CHILDRENS HOME (54.55%),Peoples Services,Miscellaneous Expenses,A49000,
http://opendatacommunities.org/id/london-borough-council/sutton,London Borough of Sutton,11/01/2023,10010353,5.42, AMZNMKTPLACE,ITEM NEEDED FOR THE WILLOW RISE CHILDRENS HOME (17.25%),Peoples Services,Miscellaneous Expenses,A49000,
http://opendatacommunities.org/id/london-borough-council/sutton,London Borough of Sutton,12/01/2023,10010353,-5.25, ASDA GROCERIES ONLINE,ASDA REFUND FOR WILLOW RISE CHILDRENS HOME,Peoples Services,Miscellaneous Expenses,A49000,
http://opendatacommunities.org/id/london-borough-council/sutton,London Borough of Sutton,10/01/2023,10010353,36.99, AMZNMKTPLACE,ITEMS NEEDED FOR WILLOW RISE CHILDRENS HOME (60.17%),Peoples Services,Miscellaneous Expenses,A49000,
http://opendatacommunities.org/id/london-borough-council/sutton,London Borough of Sutton,10/01/2023,10010353,24.49, AMZNMKTPLACE,ITEMS NEEDED FOR WILLOW RISE CHILDRENS HOME (39.83%),Peoples Services,Miscellaneous Expenses,A49000,
http://opendatacommunities.org/id/london-borough-council/sutton,London Borough of Sutton,10/01/2023,10010353,11.99, AMZNMKTPLACE,NEEDED FOR WILLOW RISE CHILDRENS HOME (100%),Peoples Services,Miscellaneous Expenses,A49000,
http://opendatacommunities.org/id/london-borough-council/sutton,London Borough of Sutton,10/01/2023,10010353,6.49, AMZNMKTPLACE,CLEANING SUPPLIES NEEDED FOR THE HOME (100%),Peoples Services,Miscellaneous Expenses,A49000,
http://opendatacommunities.org/id/london-borough-council/sutton,London Borough of Sutton,10/01/2023,10010353,17.92, AMZNMKTPLACE,ITEM NEEDED FOR THE WILLOW RISE CHILDRENS HOME (100%),Peoples Services,Miscellaneous Expenses,A49000,
http://opendatacommunities.org/id/london-borough-council/sutton,London Borough of Sutton,10/01/2023,10010353,13.49, AMZNMKTPLACE,CLEANING SUPPLIES NEEDED FOR THE HOME (100%),Peoples Services,Miscellaneous Expenses,A49000,
http://opendatacommunities.org/id/london-borough-council/sutton,London Borough of Sutton,09/01/2023,10010353,95.83, OFFICE,PRESENT FOR WILLOW RISE CHILDRENS HOME YOUNG PERSON,Peoples Services,Miscellaneous Expenses,A49000,
http://opendatacommunities.org/id/london-borough-council/sutton,London Borough of Sutton,09/01/2023,10010353,-112.50, OFFICE,REFUND AS THE SIZING WAS INCORRECT FOR THE YOUNG PERSON AT WILLOW RISE CHILDRENS HOME,Peoples Services,Miscellaneous Expenses,A49000,
http://opendatacommunities.org/id/london-borough-council/sutton,London Borough of Sutton,17/01/2023,10010353,15.99, NETFLIX.COM,NETFLIX ACCOUNT PAYMENT,Peoples Services,Miscellaneous Expenses,A49000,
http://opendatacommunities.org/id/london-borough-council/sutton,London Borough of Sutton,11/01/2023,10010353,25.99, AMZNMKTPLACE,ITEM FOR A YOUNG PERSON AT WILLOW RISE CHILDRENS HOME (82.75%),Peoples Services,Miscellaneous Expenses,A49000,
http://opendatacommunities.org/id/london-borough-council/sutton,London Borough of Sutton,11/01/2023,10010353,16.50, AMZNMKTPLACE,ITEM NEEDED FOR THE WILLOW RISE CHILDRENS HOME (45.21%),Peoples Services,Miscellaneous Expenses,A49000,
http://opendatacommunities.org/id/london-borough-council/sutton,London Borough of Sutton,11/01/2023,10010353,20.00, AMZNMKTPLACE,ITEM FOR A YOUNG PERSON AT WILLOW RISE CHILDRENS HOME (54.79%),Peoples Services,Miscellaneous Expenses,A49000,
http://opendatacommunities.org/id/london-borough-council/sutton,London Borough of Sutton,11/01/2023,10010353,31.68, AMZNMKTPLACE,ITEM NEEDED FOR THE WILLOW RISE CHILDRENS HOME (100%),Peoples Services,Miscellaneous Expenses,A49000,
http://opendatacommunities.org/id/london-borough-council/sutton,London Borough of Sutton,13/01/2023,10010353,163.74, COSTCO ONLINE UK LIMIT,ITEMS FOR WILLOW RISE CHILDRENS HOME,Peoples Services,Miscellaneous Expenses,A49000,
http://opendatacommunities.org/id/london-borough-council/sutton,London Borough of Sutton,13/01/2023,10010353,9.98, AMZNMKTPLACE AMAZON.CO,ITEMS NEEDED FOR WILLOW RISE CHILDRENS HOME (100%),Peoples Services,Miscellaneous Expenses,A49000,
http://opendatacommunities.org/id/london-borough-council/sutton,London Borough of Sutton,15/01/2023,10010353,5.42, ASDA GROCERIES ONLINE,DELIVERY PASS FOR WILLOW RISE CHILDREN'S HOME FOOD SHOP,Peoples Services,Miscellaneous Expenses,A49000,
http://opendatacommunities.org/id/london-borough-council/sutton,London Borough of Sutton,13/01/2023,10010353,32.49, COSTCO ONLINE UK LIMIT,ITEMS FOR WILLOW RISE CHILDRENS HOME,Peoples Services,Miscellaneous Expenses,A49000,
http://opendatacommunities.org/id/london-borough-council/sutton,London Borough of Sutton,12/01/2023,10010353,102.41, ASDA GROCERIES ONLINE,FOOD SHOPPING FOR WILLOW RISE CHILDRENS HOME,Peoples Services,Miscellaneous Expenses,A49000,
http://opendatacommunities.org/id/london-borough-council/sutton,London Borough of Sutton,16/01/2023,10010353,95.83, OFFICE,WILLOW RISE CHILDRENS HOME PRESENT FOR YOUNG PERSON,Peoples Services,Miscellaneous Expenses,A49000,
http://opendatacommunities.org/id/london-borough-council/sutton,London Borough of Sutton,29/12/2022,10010353,16.66, AMZNMKTPLACE AMAZON.CO,SPLIT - BANDAI JURASSIC WORLD TAMAGOTCHI NANO AMBER VERSION VIRTUAL PET | DINOSAUR ELECTRONIC PETS FOR KIDS OR ADULTS | HAND HELD GAMES MACHINE 90S GIFTS | RE (100%),Peoples Services,Client Care/Assistance,A61011,
http://opendatacommunities.org/id/london-borough-council/sutton,London Borough of Sutton,29/12/2022,10010353,12.49, AMZNMKTPLACE AMAZON.CO,SPLIT - BLUEPRINT COLLECTIONS POKEMON LARGE ART SET | LARGE STATIONERY SET | MEGA ART SET | LARGE COLOURING SET | POKEMON STATIONERY (38.48%),Peoples Services,Client Care/Assistance,A61011,
http://opendatacommunities.org/id/london-borough-council/sutton,London Borough of Sutton,29/12/2022,10010353,19.97, AMZNMKTPLACE AMAZON.CO,"SPLIT - LIDERSTAR GLOW IN THE DARK STARS AND PLANETS, BRIGHT SOLAR SYSTEM WALL STICKERS - GLOWING CEILING DECALS FOR KIDS BEDROOM OR ANY ROOM, SHINING SPACE D (61.52%)",Peoples Services,Client Care/Assistance,A61011,
http://opendatacommunities.org/id/london-borough-council/sutton,London Borough of Sutton,29/12/2022,10010353,20.99, AMZNMKTPLACE AMAZON.CO,"SPLIT - MINECRAFT HOODIE FOR KIDS, OVERSIZED BLANKET HOODIE BOYS GIRLS, GIFTS (BLACK) (79.27%)",Peoples Services,Client Care/Assistance,A61011,
http://opendatacommunities.org/id/london-borough-council/sutton,London Borough of Sutton,29/12/2022,10010353,5.49, AMZNMKTPLACE AMAZON.CO,BALANCING ENTRY AMOUNT (20.73%),Peoples Services,Client Care/Assistance,A61011,
http://opendatacommunities.org/id/london-borough-council/sutton,London Borough of Sutton,09/01/2023,10010353,20.82, AMZNMKTPLACE AMAZON.CO,"SPLIT - POKEMON TRAINER TRIVIA, 1,000 QUESTIONS, TRY TO BEAT YOUR TOP SCORE IN SINGLE PLAYER MODE OR CHALLENGE YOUR FRIENDS IN MULTIPLAYER MODE (100%)",Peoples Services,Client Care/Assistance,A61011,
http://opendatacommunities.org/id/london-borough-council/sutton,London Borough of Sutton,28/12/2022,10010353,133.32, AMZNMKTPLACE AMAZON.CO,"SPLIT - BED CENTRE PREMIER DIVAN BASE WITH 2 DRAWERS AND MATCHING HEADBOARD - AVAILABLE IN MULTIPLE FABRICS AND COLOURS (3FT SINGLE, PLUSH PINK) (100%)",Peoples Services,Client Care/Assistance,A61011,
http://opendatacommunities.org/id/london-borough-council/sutton,London Borough of Sutton,12/01/2023,10010353,12.95, TENPIN.CO.UK,ACTIVITY FOR A YOUNG PERSON WITHIN WILLOW RISE CHILDRENS HOME,Peoples Services,Housing and Support - Young People at Risk Services,A62022,
http://opendatacommunities.org/id/london-borough-council/sutton,London Borough of Sutton,18/01/2023,10010353,159.90, ZOOM.US 888-799-9666,SUBSCRIPTION FOR A TEAM,Peoples Services,Subscriptions,A47010,
http://opendatacommunities.org/id/london-borough-council/sutton,London Borough of Sutton,30/12/2022,10010353,159.90, ZOOM.US 888-799-9666,SUBSCRIPTION REQUIRED FOR A TEAM,Peoples Services,Subscriptions,A47010,
http://opendatacommunities.org/id/london-borough-council/sutton,London Borough of Sutton,19/01/2023,10010353,20.83, LB CROYDON,BC FOR A YOUNG PERSON,Peoples Services,Equipment And Materials Purchase,A40000,
http://opendatacommunities.org/id/london-borough-council/sutton,London Borough of Sutton,11/01/2023,10010353,-22.00, SUTTON REGISTER OFFICE,REFUND FOR BC FOR A YOUNG PERSON,Peoples Services,Equipment And Materials Purchase,A40000,
http://opendatacommunities.org/id/london-borough-council/sutton,London Borough of Sutton,10/01/2023,10010353,18.33, SUTTON REGISTER OFFICE,BIRTH CERTIFICATE REQUIRED FOR A YOUNG PERSON,Peoples Services,Equipment And Materials Purchase,A40000,
http://opendatacommunities.org/id/london-borough-council/sutton,London Borough of Sutton,24/01/2023,10010353,25.00, GEN REGISTER OFFICE,BIRTH CERTIFICATE PAYMENT,Peoples Services,Equipment And Materials Purchase,A40000,
http://opendatacommunities.org/id/london-borough-council/sutton,London Borough of Sutton,11/01/2023,10010353,25.00, GEN REGISTER OFFICE,BIRTH CERTIFICATES PAYMENT,Peoples Services,Equipment And Materials Purchase,A40000,
http://opendatacommunities.org/id/london-borough-council/sutton,London Borough of Sutton,09/01/2023,10010353,22.00, SURREY CC CARD PAY,BIRTH CERTIFICATES PAYMENT,Peoples Services,Equipment And Materials Purchase,A40000,
http://opendatacommunities.org/id/london-borough-council/sutton,London Borough of Sutton,09/01/2023,10010353,22.00, SURREY CC CARD PAY,BIRTH CERTIFICATES PAYMENT,Peoples Services,Equipment And Materials Purchase,A40000,
http://opendatacommunities.org/id/london-borough-council/sutton,London Borough of Sutton,10/01/2023,10010353,-29.99, B&Q MARKETPLACE,REFUND FOR ITEMS PURCHASED FOR A YOUNG PERSON,Peoples Services,Client Care/Assistance,A61011,
http://opendatacommunities.org/id/london-borough-council/sutton,London Borough of Sutton,11/01/2023,10010353,24.99, B&Q MARKETPLACE,3 PANEL FIRE GUARD,Peoples Services,Client Care/Assistance,A61011,
http://opendatacommunities.org/id/london-borough-council/sutton,London Borough of Sutton,25/01/2023,10010353,68.95, ARGOS LTD,ARGOS CHEST OF DRAWERS PAYMENT,Peoples Services,Client Care/Assistance,A61011,
http://opendatacommunities.org/id/london-borough-council/sutton,London Borough of Sutton,19/01/2023,10010353,57.46, ARGOS LTD,ITEMS NEEDED FOR A YOUNG PERSON,Peoples Services,Client Care/Assistance,A61011,
http://opendatacommunities.org/id/london-borough-council/sutton,London Borough of Sutton,29/12/2022,10010353,540.40, JAM UK TRADING LTD,JAM UK TRADING,Peoples Services,Equipment And Materials Purchase,A40000,
http://opendatacommunities.org/id/london-borough-council/sutton,London Borough of Sutton,29/12/2022,10010353,-540.40, JAM UK TRADING LTD,REFUND,Peoples Services,Equipment And Materials Purchase,A40000,
http://opendatacommunities.org/id/london-borough-council/sutton,London Borough of Sutton,25/01/2023,10010353,24.45, CORAMBAAF,CORAMBAAF BOOK PAYMENT,Peoples Services,Equipment And Materials Purchase,A40000,
http://opendatacommunities.org/id/london-borough-council/sutton,London Borough of Sutton,18/01/2023,10010353,158.67, WWW.BIGYELLOW.CO.UK,RENT FEE FOR BIG YELLOW STORAGE,Peoples Services,Equipment And Materials Purchase,A40000,
http://opendatacommunities.org/id/london-borough-council/sutton,London Borough of Sutton,06/01/2023,10010353,152.85, ENTERPRISE RENT-A-CAR,ENTERPRISE CAR RENTAL PAYMENT,Peoples Services,Client Care/Assistance,A61011,
http://opendatacommunities.org/id/london-borough-council/sutton,London Borough of Sutton,18/01/2023,10010353,216.67, ARGOS LTD,WASHING MACHINE,Peoples Services,Approved Lodgings,A61000,
http://opendatacommunities.org/id/london-borough-council/sutton,London Borough of Sutton,06/01/2023,10010353,17.00, WWW.WIGHTLINK.CO.UK,FERRY A VISIT,Peoples Services,Miscellaneous Expenses,A49000,
http://opendatacommunities.org/id/london-borough-council/sutton,London Borough of Sutton,12/01/2023,10010353,70.83, WWW.WIGHTLINK.CO.UK,FERRY TRAVEL,Peoples Services,C.C.A Travel & Subsistance,A61010,
http://opendatacommunities.org/id/london-borough-council/sutton,London Borough of Sutton,13/01/2023,10010353,380.00, SAFETY PUBL,MOVING AND HANDLING BOOKLETS X 200 SAFETY PUBLISHING - LTD DAVID OLLEY - INFO@SAFETYPUBLISHING.CO.UK,Peoples Services,Staff Development And Training,A15022,
http://opendatacommunities.org/id/london-borough-council/sutton,London Borough of Sutton,23/01/2023,10010353,35.40, VIVA ACCESS LTD,"""REDACTED - PERSONAL DATA"" -  VIVA ACCESS X5 COURSES IN MARCH/APRIL 2023",Peoples Services,Staff Development And Training,A15022,
http://opendatacommunities.org/id/london-borough-council/sutton,London Borough of Sutton,23/01/2023,10010353,35.40, VIVA ACCESS LTD,"""REDACTED - PERSONAL DATA"" -  VIVA ACCESS X5 COURSES IN MARCH/APRIL 2023",Peoples Services,Staff Development And Training,A15022,
http://opendatacommunities.org/id/london-borough-council/sutton,London Borough of Sutton,23/01/2023,10010353,42.00, VIVA ACCESS LTD,"""REDACTED - PERSONAL DATA"" -  VIVA ACCESS X5 COURSES IN MARCH/APRIL 2023",Peoples Services,Staff Development And Training,A15022,
http://opendatacommunities.org/id/london-borough-council/sutton,London Borough of Sutton,23/01/2023,10010353,42.00, VIVA ACCESS LTD,"""REDACTED - PERSONAL DATA"" -  VIVA ACCESS X5 COURSES IN MARCH/APRIL 2023",Peoples Services,Staff Development And Training,A15022,
http://opendatacommunities.org/id/london-borough-council/sutton,London Borough of Sutton,23/01/2023,10010353,42.00, VIVA ACCESS LTD,"""REDACTED - PERSONAL DATA"" -  VIVA ACCESS X5 COURSES IN MARCH/APRIL 2023",Peoples Services,Staff Development And Training,A15022,
http://opendatacommunities.org/id/london-borough-council/sutton,London Borough of Sutton,23/01/2023,10010353,42.00, VIVA ACCESS LTD,"""REDACTED - PERSONAL DATA"" - VIVA ACCESS RAMPING FOR WHEELCHAIR USERS: LEVEL 1 ON 28/02/23",Peoples Services,Staff Development And Training,A15022,
http://opendatacommunities.org/id/london-borough-council/sutton,London Borough of Sutton,18/01/2023,10010353,40.00, WWW.ACAMH.ORG,TRAUMA & LOOKED AFTER CHILDREN - 4 X 2 HOUR WEBINARS IN MARCH. HTTPS://WWW.ACAMH.ORG/EVENT/TRAUMA-LOOKED-AFTER-CHILDREN/,Peoples Services,Staff Development And Training,A15022,
http://opendatacommunities.org/id/london-borough-council/sutton,London Borough of Sutton,19/01/2023,10010353,484.17, MARSHALL SKODA,REQUIRED ITEM FOR A YOUNG PERSON,Peoples Services,Equipment And Materials Purchase,A40000,
http://opendatacommunities.org/id/london-borough-council/sutton,London Borough of Sutton,12/01/2023,10010353,7.97, AMZNMKTPLACE AMAZON.CO,ART SUPPLIES REQUIRED FOR THE TEAM (10.98%),Peoples Services,Miscellaneous Expenses,A49000,
http://opendatacommunities.org/id/london-borough-council/sutton,London Borough of Sutton,12/01/2023,10010353,9.61, AMZNMKTPLACE AMAZON.CO,"SPLIT - AIR DRY CLAY, 24 COLORS ULTRA LIGHT MODELING CLAY, IFERGOO MAGIC CLAY DIY CREATIVE MODELING DOUGH WITH PROJECT BOOKLET (13.24%)",Peoples Services,Miscellaneous Expenses,A49000,
http://opendatacommunities.org/id/london-borough-council/sutton,London Borough of Sutton,12/01/2023,10010353,13.99, AMZNMKTPLACE AMAZON.CO,SPLIT - URATOT 20 PIECES 100 ML CLEAR FLIP CAP BOTTLES TRANSPARENT BOTTLES COSMETIC BOTTLES PLASTIC TRAVEL BOTTLES WITH SMALL FUNNELS AND LABELS (19.27%),Peoples Services,Miscellaneous Expenses,A49000,
http://opendatacommunities.org/id/london-borough-council/sutton,London Borough of Sutton,12/01/2023,10010353,11.04, AMZNMKTPLACE AMAZON.CO,"SPLIT - EMITEVER PAINT BRUSH SET-5 PIECE, WOOD HANDLE, PREMIUM WALL BRUSH SET, HOUSE PAINTBRUSHES, TRIM PAINTBRUSH, SASH PAINT BRUSHES FOR CABINET, SASH, HOME (15.21%)",Peoples Services,Miscellaneous Expenses,A49000,
http://opendatacommunities.org/id/london-borough-council/sutton,London Borough of Sutton,12/01/2023,10010353,29.99, AMZNMKTPLACE AMAZON.CO,SPLIT - HELPING CHILDREN TALK ABOUT THEIR LIVES CARDS (41.3%),Peoples Services,Miscellaneous Expenses,A49000,
http://opendatacommunities.org/id/london-borough-council/sutton,London Borough of Sutton,12/01/2023,10010353,10.90, AMZNMKTPLACE AMAZON.CO,ITEMS NEEDED FOR ART RESOURCES (100%),Peoples Services,Miscellaneous Expenses,A49000,
http://opendatacommunities.org/id/london-borough-council/sutton,London Borough of Sutton,12/01/2023,10010353,9.75, AMZNMKTPLACE AMAZON.CO,ART SUPPLIES REQUIRED FOR THE TEAM (26.47%),Peoples Services,Miscellaneous Expenses,A49000,
http://opendatacommunities.org/id/london-borough-council/sutton,London Borough of Sutton,12/01/2023,10010353,17.10, AMZNMKTPLACE AMAZON.CO,SPLIT - MULTI-TALENTED PENCIL - STABILO WOODY 3 IN 1 - PACK OF 10 - ASSORTED COLOURS WITH SHARPENER (46.42%),Peoples Services,Miscellaneous Expenses,A49000,
http://opendatacommunities.org/id/london-borough-council/sutton,London Borough of Sutton,12/01/2023,10010353,9.99, AMZNMKTPLACE AMAZON.CO,"SPLIT - LITTLE BRIAN LBPS10CMDA24 PAINT STICKS BUMPER PACK, 24 ASSORTED, MULTI (27.11%)",Peoples Services,Miscellaneous Expenses,A49000,
http://opendatacommunities.org/id/london-borough-council/sutton,London Borough of Sutton,12/01/2023,10010353,20.99, AMZNMKTPLACE AMAZON.CO,ART SUPPLIES REQUIRED FOR THE TEAM (100%),Peoples Services,Miscellaneous Expenses,A49000,
http://opendatacommunities.org/id/london-borough-council/sutton,London Borough of Sutton,13/01/2023,10010353,7.92, AMZNMKTPLACE AMAZON.CO,SPLIT - MAJOR BRUSHES WHITE SABLE ROUND BRUSH SET OF 5 PLUS ARTIST WATERCOLOUR PAINT TIN 36 BLOCKS RED METAL LID (100%),Peoples Services,Miscellaneous Expenses,A49000,
http://opendatacommunities.org/id/london-borough-council/sutton,London Borough of Sutton,13/01/2023,10010353,19.03, AMZNMKTPLACE AMAZON.CO,ART SUPPLIES REQUIRED FOR THE TEAM (100%),Peoples Services,Miscellaneous Expenses,A49000,
http://opendatacommunities.org/id/london-borough-council/sutton,London Borough of Sutton,09/01/2023,10010353,9.17, SUTTON REGISTER OFFICE,BIRTH CERTIFICATE FOR A YOUNG PERSON,Peoples Services,Equipment And Materials Purchase,A40000,
http://opendatacommunities.org/id/london-borough-council/sutton,London Borough of Sutton,03/01/2023,10010353,104.03, STORAGEMART UK #5215,STORAGE UNIT FOR A CLIENT,Peoples Services,Miscellaneous Expenses,A49000,
http://opendatacommunities.org/id/london-borough-council/sutton,London Borough of Sutton,16/01/2023,10010353,261.64, PREMIER INN,HOTEL NEEDED FOR A CLIENT,Peoples Services,Client Care/Assistance,A61011,
http://opendatacommunities.org/id/london-borough-council/sutton,London Borough of Sutton,16/01/2023,10010353,288.28, PREMIER INN,HOTEL NEEDED FOR A CLIENT,Peoples Services,Client Care/Assistance,A61011,
http://opendatacommunities.org/id/london-borough-council/sutton,London Borough of Sutton,20/01/2023,10010353,891.88, PREMIER INN,PREMIER INN HOTEL PAYMENT,Peoples Services,Client Care/Assistance,A61011,
http://opendatacommunities.org/id/london-borough-council/sutton,London Borough of Sutton,20/01/2023,10010353,-709.88, PREMIER INN,PREMIER INN HOTEL PAYMENT REFUND,Peoples Services,Client Care/Assistance,A61011,
http://opendatacommunities.org/id/london-borough-council/sutton,London Borough of Sutton,13/01/2023,10010353,478.26, PREMIER INN,HOTEL REQUIRED FOR A CLIENT,Peoples Services,Client Care/Assistance,A61011,
http://opendatacommunities.org/id/london-borough-council/sutton,London Borough of Sutton,19/01/2023,10010353,237.97, PREMIER INN,HOTEL STAY,Peoples Services,Client Care/Assistance,A61011,
http://opendatacommunities.org/id/london-borough-council/sutton,London Borough of Sutton,17/01/2023,10010353,"1,183.60", ADAGIO LONDON SUTTON P,HOTEL BOOKING EXTENSION FOR SUTTON & CHEAM REVIEW TEAM (MURIEL GANDARY),Peoples Services,C.C.A Travel & Subsistance,A61010,
http://opendatacommunities.org/id/london-borough-council/sutton,London Borough of Sutton,25/01/2023,10010353,"2,189.00", ADAGIO LONDON SUTTON P,HOTEL EXTENSION,Peoples Services,Client Care/Assistance,A61011,
http://opendatacommunities.org/id/london-borough-council/sutton,London Borough of Sutton,09/01/2023,10010353,970.05, ADAGIO LONDON SUTTON P,HOTEL REQUIRED FOR A CLIENT,Peoples Services,Client Care/Assistance,A61011,
http://opendatacommunities.org/id/london-borough-council/sutton,London Borough of Sutton,09/01/2023,10010353,58.33, ADAGIO LONDON SUTTON P,HOTEL REQUIRED FOR A CLIENT,Peoples Services,Client Care/Assistance,A61011,
http://opendatacommunities.org/id/london-borough-council/sutton,London Borough of Sutton,16/01/2023,10010353,170.00, ADAGIO LONDON SUTTON P,HOTEL NEEDED FOR A CLIENT,Peoples Services,Client Care/Assistance,A61011,
http://opendatacommunities.org/id/london-borough-council/sutton,London Borough of Sutton,29/12/2022,10010353,442.80, AMZNMKTPLACE,"SPLIT - PERSONAL ALARM FOR WOMEN, STUDENTS, KIDS, ELDERLY, GIRLS, POLICE APPROVED RAPE & PANIC ALARM, WATERPROOF, RECHARGEABLE, BLACK WITH LED FLASHLIGHT. (100%)",Peoples Services,Health & Safety Equipment,A40080,
http://opendatacommunities.org/id/london-borough-council/sutton,London Borough of Sutton,28/12/2022,10010353,17.37, AMZNMKTPLACE,"SPLIT - A4 SIZE WIRE BOUND PURPLE FULL YEAR CALENDAR 2023 - MONTH TO VIEW - GREAT FOR THE HOME, OFFICE, CLASSROOM OR WORK PLACE - INCLUDES MONTHS OF JANUARY 2023 TO DECEMBER 2023 (100%)",Peoples Services,Miscellaneous Expenses,A49000,
http://opendatacommunities.org/id/london-borough-council/sutton,London Borough of Sutton,12/01/2023,10010353,139.00, SHUTTERSTOCK IRELAND L,ACCOUNT NEEDED FOR SAFEGUARDING TEAM,Peoples Services,Miscellaneous Expenses,A49000,
http://opendatacommunities.org/id/london-borough-council/sutton,London Borough of Sutton,19/01/2023,10010353,100.00, WWW.RIBABOOKSHOPS.COM,RIBA STANDARD PROFESSIONAL SERVICES CONTRACT 2020 : ARCHITECTURAL SERVICES - 2 COPIES,Peoples Services,Other Capital Expenditure,C20002,
http://opendatacommunities.org/id/london-borough-council/sutton,London Borough of Sutton,24/01/2023,10010353,84.00, FE CAREERS LTD,FE WEEK ESOL STAFF ADVERTISING,Health and Wellbeing,Advertising - Staff,A15027,
http://opendatacommunities.org/id/london-borough-council/sutton,London Borough of Sutton,24/01/2023,10010353,84.00, FE CAREERS LTD,FE WEEK ESOL STAFF ADVERTISING,Health and Wellbeing,Advertising - Staff,A15027,
http://opendatacommunities.org/id/london-borough-council/sutton,London Borough of Sutton,23/01/2023,10010353,29.17, NCFE.ORG.UK,"""REDACTED - PERSONAL DATA"" - NCFE CERTIFICATE VERIFICATION",Health and Wellbeing,Fees,A44040,
http://opendatacommunities.org/id/london-borough-council/sutton,London Borough of Sutton,22/01/2023,10010353,229.99, 123 REG LTD 003922138,DOMAIN WILDCARD SSL RENEWAL - 1 YEAR - IT,Health and Wellbeing,Registration & Licence Fees Payable,A44267,
http://opendatacommunities.org/id/london-borough-council/sutton,London Borough of Sutton,01/01/2023,10010353,58.50, GSUITE_SUTTONCOLLEGE.A,GOOGLE CLOUD EMEA LIMITED 4631595178,Health and Wellbeing,Subscriptions,A47010,
http://opendatacommunities.org/id/london-borough-council/sutton,London Borough of Sutton,04/01/2023,10010353,12.49, AMZNMKTPLACE,AMAZON FLAGS 14.99 050123 (100%),Health and Wellbeing,Publicity,A44266,
http://opendatacommunities.org/id/london-borough-council/sutton,London Borough of Sutton,31/12/2022,10010353,139.39, FACEBK WMZP7HT6A2,FACEBOOK AD SPRING 311222 139.39,Health and Wellbeing,Publicity,A44266,
http://opendatacommunities.org/id/london-borough-council/sutton,London Borough of Sutton,30/12/2022,10010353,82.01, MAILCHIMP,MAILCHIMP TAX INVOICE  DEC 22 98.41,Health and Wellbeing,Publicity,A44266,
http://opendatacommunities.org/id/london-borough-council/sutton,London Borough of Sutton,12/01/2023,10010353,4.43, JOTFORM INC.,TRANSACTION FEE FOR JOTFORM 110123 195USD,Health and Wellbeing,Publicity,A44266,
http://opendatacommunities.org/id/london-borough-council/sutton,London Borough of Sutton,11/01/2023,10010353,161.05, JOTFORM INC.,JOTFORM 110123 195USD,Health and Wellbeing,Publicity,A44266,
http://opendatacommunities.org/id/london-borough-council/sutton,London Borough of Sutton,07/01/2023,10010353,47.99, ADOBE STOCK,ADOBE 060123 47.99,Health and Wellbeing,Publicity,A44266,
http://opendatacommunities.org/id/london-borough-council/sutton,London Borough of Sutton,10/01/2023,10010353,-12.35, THOMAS RIDLEY FOODSERV,PART REFUND ON VENDING 040123 DG BUDGET THOMAS RIDLEY 377.63,Health and Wellbeing,Vending Machines Supplies,A44041,
http://opendatacommunities.org/id/london-borough-council/sutton,London Borough of Sutton,04/01/2023,10010353,314.69, THOMAS RIDLEY FOODSERV,VENDING 040123 DG BUDGET THOMAS RIDLEY 377.63,Health and Wellbeing,Vending Machines Supplies,A44041,
http://opendatacommunities.org/id/london-borough-council/sutton,London Borough of Sutton,05/01/2023,10010353,133.32, WWW.SCREWFIX.COM,SCREWFIX DIY 051023 159.99,Health and Wellbeing,Equipment And Materials Purchase,A40000,
http://opendatacommunities.org/id/london-borough-council/sutton,London Borough of Sutton,13/01/2023,10010353,168.01, E POLLARD AND SONS LIM,INV 18033038 FLOWERS FOR FLORISTRY CLASSES,Health and Wellbeing,Equipment And Materials Purchase,A40000,
http://opendatacommunities.org/id/london-borough-council/sutton,London Borough of Sutton,10/01/2023,10010353,348.47, E POLLARD AND SONS LIM,FLOWERS FOR FLORISTRY CLASSES STATEMENT,Health and Wellbeing,Equipment And Materials Purchase,A40000,
http://opendatacommunities.org/id/london-borough-council/sutton,London Borough of Sutton,13/01/2023,10010353,420.83, E POLLARD AND SONS LIM,FLOWERS FOR FLORISTRY DEPT,Health and Wellbeing,Equipment And Materials Purchase,A40000,
http://opendatacommunities.org/id/london-borough-council/sutton,London Borough of Sutton,25/01/2023,10010353,6.99, AMZNBUSINESS 1O8BV2ZS4,"SPLIT - NATIONAL GEOGRAPHIC KIDS 125 TRUE STORIES OF AMAZING ANIMALS: INSPIRING TALES OF ANIMAL FRIENDSHIP & FOUR-LEGGED HEROES, PLUS CRAZY ANIMAL ANTICS (100%)",Peoples Services,LAC - Education,A44280,
http://opendatacommunities.org/id/london-borough-council/sutton,London Borough of Sutton,24/01/2023,10010353,7.35, AMZNBUSINESS 1O71A4C34,SPLIT - THUNDERHEAD (ARC OF A SCYTHE) (100%),Peoples Services,LAC - Education,A44280,
http://opendatacommunities.org/id/london-borough-council/sutton,London Borough of Sutton,24/01/2023,10010353,8.27, AMZNBUSINESS 1O9VG0F84,SPLIT - THE TOLL (ARC OF A SCYTHE) (100%),Peoples Services,LAC - Education,A44280,
http://opendatacommunities.org/id/london-borough-council/sutton,London Borough of Sutton,23/01/2023,10010353,4.16, AMZNBUSINESS 1A7FS6RV4,SPLIT - HELIX OXFORD COMPLETE STATIONERY SET IN 13.5 INCH PENCIL CASE (100%),Peoples Services,LAC - Education,A44280,
http://opendatacommunities.org/id/london-borough-council/sutton,London Borough of Sutton,23/01/2023,10010353,4.16, AMZNBUSINESS 1A45V1WK4,"SPLIT - OXFORD CAMPUS, A4 LINED PAPER REFILL PAD, 300PG, NAVY, 1 NOTEBOOK (29.6%)",Peoples Services,LAC - Education,A44280,
http://opendatacommunities.org/id/london-borough-council/sutton,London Borough of Sutton,23/01/2023,10010353,4.54, AMZNBUSINESS 1A45V1WK4,"SPLIT - RAPESCO 1665 POPPER WALLETS, A4+ / FOOLSCAP, ASSORTED TRANSPARENT COLOURS, PACK OF 10 (32.33%)",Peoples Services,LAC - Education,A44280,
http://opendatacommunities.org/id/london-borough-council/sutton,London Borough of Sutton,23/01/2023,10010353,2.49, AMZNBUSINESS 1A45V1WK4,SPLIT - Q-CONNECT INDEX A4 MULTI-PUNCHED 10-PART REINFORCED MULTI-COLOUR BLANK TABS KF01526 (17.73%),Peoples Services,LAC - Education,A44280,
http://opendatacommunities.org/id/london-borough-council/sutton,London Borough of Sutton,23/01/2023,10010353,2.86, AMZNBUSINESS 1A45V1WK4,"SPLIT - ESSELTE A4 LEVER ARCH FILE, GREEN, 72MM SPINE, PLASTIC, 811360, 500 SHEETS CAPACITY (20.34%)",Peoples Services,LAC - Education,A44280,
http://opendatacommunities.org/id/london-borough-council/sutton,London Borough of Sutton,23/01/2023,10010353,7.35, AMZNBUSINESS 1A18A0IA4,SPLIT - MUSICAL TRUTH: A MUSICAL JOURNEY THROUGH MODERN BLACK BRITAIN (53.65%),Peoples Services,LAC - Education,A44280,
http://opendatacommunities.org/id/london-borough-council/sutton,London Borough of Sutton,23/01/2023,10010353,6.35, AMZNBUSINESS 1A18A0IA4,"SPLIT - BLACK AND BRITISH: A SHORT, ESSENTIAL HISTORY (46.35%)",Peoples Services,LAC - Education,A44280,
http://opendatacommunities.org/id/london-borough-council/sutton,London Borough of Sutton,15/01/2023,10010353,4.99, AMZNMKTPLACE,SPLIT - HANDWRITING TODAY: BK. 1 (HANDWRITING TODAY) (45.82%),Peoples Services,LAC - Education,A44280,
http://opendatacommunities.org/id/london-borough-council/sutton,London Borough of Sutton,15/01/2023,10010353,4.92, AMZNMKTPLACE,"SPLIT - SUMBOX EDUCATIONAL TIMES TABLES MATHS POSTER WALL CHART - BLUE,197MM X 420MM (54.18%)",Peoples Services,LAC - Education,A44280,
http://opendatacommunities.org/id/london-borough-council/sutton,London Borough of Sutton,15/01/2023,10010353,4.99, AMZNMKTPLACE,SPLIT - HELIX OXFORD COMPLETE STATIONERY SET IN 13.5 INCH PENCIL CASE (100%),Peoples Services,LAC - Education,A44280,
http://opendatacommunities.org/id/london-borough-council/sutton,London Borough of Sutton,15/01/2023,10010353,22.95, AMZNMKTPLACE,"SPLIT - 4 PIECES ENGLISH EDUCATIONAL POSTERS OTHER WAYS TO SAY SYNONYMS POSTER COMMONLY CONFUSED WORDS GRAMMAR LEARNING CHARTS FOR ELEMENTARY MIDDLE SCHOOL CLASSROOM PLAYROOM DECORATION, 17 X 22 INCH (100%)",Peoples Services,LAC - Education,A44280,
http://opendatacommunities.org/id/london-borough-council/sutton,London Borough of Sutton,15/01/2023,10010353,3.70, AMZNMKTPLACE,"SPLIT - VOCABULARY NOTEBOOK: 203 X 102MM, 8MM LINE RULED WITH CENTRE MARGIN, VOCAB SPELLING EXERCISE BOOK, 100 PAGES, 90GSM PAPER - BLUE GREY (12.8%)",Peoples Services,LAC - Education,A44280,
http://opendatacommunities.org/id/london-borough-council/sutton,London Borough of Sutton,15/01/2023,10010353,25.20, AMZNMKTPLACE,SPLIT - LONGMAN PHOTO DICTIONARY (87.2%),Peoples Services,LAC - Education,A44280,
